[Event "November 21 Early 2023"]
[Site "https://www.chess.com"]
[Date "2023.11.21"]
[Round "5"]
[White "Nazari, Arad"]
[Black "Luukkonen, Tommi"]
[Result "1-0"]
[Board "89"]
[TimeControl "180+1"]
[WhiteFideId "12577324"]
[BlackFideId "501808"]
[WhiteElo "2100"]
[BlackElo "2219"]
[WhiteTeam "IRI"]
[BlackTeam "FIN"]
[WhiteClock "0:00:38"]
[BlackClock "0:01:07"]

1. e4 {[%clk 0:02:53]}  c5 {[%clk 0:02:57]} 2. Nf3 {[%clk 0:02:53]}  d6 {[%clk 0:02:58]} 3. Bb5+ {[%clk 0:02:53]}  Nd7 {[%clk 0:02:57]} 4. d4 {[%clk 0:02:53]}  cxd4 {[%clk 0:02:56]} 5. Qxd4 {[%clk 0:02:54]}  a6 {[%clk 0:02:56]} 6. Bxd7+ {[%clk 0:02:55]}  Bxd7 {[%clk 0:02:55]} 7. O-O {[%clk 0:02:55]}  Rc8 {[%clk 0:02:55]} 8. c4 {[%clk 0:02:56]}  Nf6 {[%clk 0:02:53]} 9. Nc3 {[%clk 0:02:56]}  e5 {[%clk 0:02:51]} 10. Qd3 {[%clk 0:02:56]}  Qc7 {[%clk 0:02:48]} 11. b3 {[%clk 0:02:54]}  b5 {[%clk 0:02:47]} 12. Nd2 {[%clk 0:02:55]}  Be7 {[%clk 0:02:44]} 13. a4 {[%clk 0:02:54]}  b4 {[%clk 0:02:41]} 14. Nd5 {[%clk 0:02:49]}  Nxd5 {[%clk 0:02:40]} 15. cxd5 {[%clk 0:02:49]}  Qc3 {[%clk 0:02:36]} 16. Qb1 {[%clk 0:02:50]}  Qc2 {[%clk 0:02:29]} 17. Nc4 {[%clk 0:02:43]}  Rxc4 {[%clk 0:02:17]} 18. bxc4 {[%clk 0:02:40]}  Qxc4 {[%clk 0:02:18]} 19. Bd2 {[%clk 0:02:17]}  a5 {[%clk 0:02:16]} 20. Rc1 {[%clk 0:02:17]}  Qe2 {[%clk 0:02:13]} 21. Ra2 {[%clk 0:02:17]}  Qg4 {[%clk 0:02:09]} 22. Rc7 {[%clk 0:02:05]}  Bd8 {[%clk 0:02:05]} 23. Ra7 {[%clk 0:01:54]}  f5 {[%clk 0:01:58]} 24. Ra6 {[%clk 0:01:19]}  Qg6 {[%clk 0:01:41]} 25. Be3 {[%clk 0:00:59]}  f4 {[%clk 0:01:36]} 26. Bb6 {[%clk 0:00:51]}  f3 {[%clk 0:01:35]} 27. g3 {[%clk 0:00:46]}  O-O {[%clk 0:01:20]} 28. Bxd8 {[%clk 0:00:43]}  Rxd8 {[%clk 0:01:20]} 29. Rxa5 {[%clk 0:00:40]}  Qxe4 {[%clk 0:01:07]} 30. Qxe4 {[%clk 0:00:38]} 1-0

[Event "November 21 Early 2023"]
[Site "https://www.chess.com"]
[Date "2023.11.21"]
[Round "5"]
[White "Grossboss19"]
[Black "Csonka, Balazs"]
[Result "1/2-1/2"]
[Board "90"]
[TimeControl "180+1"]
[BlackFideId "742910"]
[WhiteElo "2498"]
[BlackElo "2399"]
[BlackTeam "HUN"]
[WhiteClock "0:00:54"]
[BlackClock "0:00:16"]

1. c4 {[%clk 0:02:54]}  e6 {[%clk 0:02:58]} 2. Nc3 {[%clk 0:02:51]}  d5 {[%clk 0:02:59]} 3. d4 {[%clk 0:02:50]}  Nf6 {[%clk 0:02:55]} 4. cxd5 {[%clk 0:02:49]}  Nxd5 {[%clk 0:02:54]} 5. e4 {[%clk 0:02:48]}  Nxc3 {[%clk 0:02:55]} 6. bxc3 {[%clk 0:02:49]}  c5 {[%clk 0:02:54]} 7. Nf3 {[%clk 0:02:50]}  cxd4 {[%clk 0:02:54]} 8. cxd4 {[%clk 0:02:51]}  Bb4+ {[%clk 0:02:54]} 9. Bd2 {[%clk 0:02:51]}  Bxd2+ {[%clk 0:02:55]} 10. Qxd2 {[%clk 0:02:52]}  O-O {[%clk 0:02:55]} 11. Bc4 {[%clk 0:02:52]}  Nd7 {[%clk 0:02:54]} 12. O-O {[%clk 0:02:52]}  b6 {[%clk 0:02:53]} 13. Rfe1 {[%clk 0:02:51]}  Bb7 {[%clk 0:02:53]} 14. Rad1 {[%clk 0:02:49]}  Rc8 {[%clk 0:02:53]} 15. Bb3 {[%clk 0:02:49]}  h6 {[%clk 0:02:51]} 16. Qf4 {[%clk 0:02:47]}  Qc7 {[%clk 0:02:29]} 17. e5 {[%clk 0:02:35]}  b5 {[%clk 0:02:21]} 18. d5 {[%clk 0:02:28]}  exd5 {[%clk 0:02:14]} 19. Bxd5 {[%clk 0:02:29]}  Nc5 {[%clk 0:02:02]} 20. Bxb7 {[%clk 0:02:24]}  Qxb7 {[%clk 0:02:02]} 21. Nd4 {[%clk 0:02:17]}  Rcd8 {[%clk 0:01:13]} 22. Nf5 {[%clk 0:02:09]}  Qe4 {[%clk 0:01:00]} 23. Qxe4 {[%clk 0:01:38]}  Nxe4 {[%clk 0:00:59]} 24. Nd6 {[%clk 0:01:38]}  Nxd6 {[%clk 0:00:57]} 25. exd6 {[%clk 0:01:37]}  Rd7 {[%clk 0:00:56]} 26. Re5 {[%clk 0:01:33]}  a6 {[%clk 0:00:53]} 27. a4 {[%clk 0:01:33]}  bxa4 {[%clk 0:00:49]} 28. Ra5 {[%clk 0:01:32]}  Ra8 {[%clk 0:00:26]} 29. Rxa4 {[%clk 0:01:25]}  f6 {[%clk 0:00:27]} 30. f4 {[%clk 0:01:20]}  Kf7 {[%clk 0:00:26]} 31. f5 {[%clk 0:01:20]}  a5 {[%clk 0:00:23]} 32. Rd5 {[%clk 0:01:14]}  Ra6 {[%clk 0:00:22]} 33. Raxa5 {[%clk 0:01:13]}  Rdxd6 {[%clk 0:00:19]} 34. h3 {[%clk 0:01:05]}  h5 {[%clk 0:00:19]} 35. Kh2 {[%clk 0:01:01]}  h4 {[%clk 0:00:18]} 36. Rxd6 {[%clk 0:00:56]}  Rxa5 {[%clk 0:00:17]} 37. Rd7+ {[%clk 0:00:56]}  Kg8 {[%clk 0:00:17]} 38. Rd4 {[%clk 0:00:55]}  Rxf5 {[%clk 0:00:17]} 39. Rxh4 {[%clk 0:00:54]}  Kf7 {[%clk 0:00:16]} 1/2-1/2

[Event "November 21 Early 2023"]
[Site "https://www.chess.com"]
[Date "2023.11.21"]
[Round "5"]
[White "Devaev, Alexander"]
[Black "Sadubayev, Airat"]
[Result "1-0"]
[Board "92"]
[TimeControl "180+1"]
[WhiteFideId "4169395"]
[BlackFideId "13713264"]
[WhiteElo "2172"]
[BlackElo "2137"]
[WhiteTeam "RUS"]
[BlackTeam "KAZ"]
[WhiteClock "0:00:15"]
[BlackClock "0:00:07"]

1. Nf3 {[%clk 0:02:57]}  d5 {[%clk 0:02:56]} 2. c4 {[%clk 0:02:56]}  c6 {[%clk 0:02:53]} 3. b3 {[%clk 0:02:51]}  Nf6 {[%clk 0:02:52]} 4. Bb2 {[%clk 0:02:51]}  Bf5 {[%clk 0:02:42]} 5. e3 {[%clk 0:02:48]}  e6 {[%clk 0:02:40]} 6. Nh4 {[%clk 0:02:49]}  Bg4 {[%clk 0:02:34]} 7. Qc2 {[%clk 0:02:49]}  Nbd7 {[%clk 0:02:23]} 8. h3 {[%clk 0:02:48]}  Bh5 {[%clk 0:02:15]} 9. g4 {[%clk 0:02:48]}  Bg6 {[%clk 0:02:11]} 10. Nxg6 {[%clk 0:02:48]}  hxg6 {[%clk 0:02:12]} 11. Bg2 {[%clk 0:02:47]}  Bd6 {[%clk 0:02:06]} 12. Nc3 {[%clk 0:02:45]}  Qc7 {[%clk 0:01:55]} 13. Rc1 {[%clk 0:02:26]}  O-O-O {[%clk 0:01:30]} 14. cxd5 {[%clk 0:02:13]}  exd5 {[%clk 0:01:26]} 15. Qb1 {[%clk 0:01:35]}  Kb8 {[%clk 0:01:07]} 16. g5 {[%clk 0:01:29]}  Nh5 {[%clk 0:00:46]} 17. Nxd5 {[%clk 0:01:30]}  Qa5 {[%clk 0:00:38]} 18. b4 {[%clk 0:01:22]}  Qb5 {[%clk 0:00:32]} 19. Nc3 {[%clk 0:01:05]}  Qxg5 {[%clk 0:00:27]} 20. Rg1 {[%clk 0:00:56]}  Bh2 {[%clk 0:00:21]} 21. Ne4 {[%clk 0:00:52]}  Qf5 {[%clk 0:00:14]} 22. Rh1 {[%clk 0:00:51]}  Bc7 {[%clk 0:00:14]} 23. Nc5 {[%clk 0:00:40]}  Nxc5 {[%clk 0:00:12]} 24. Qxf5 {[%clk 0:00:30]}  Nd3+ {[%clk 0:00:11]} 25. Qxd3 {[%clk 0:00:28]}  Rxd3 {[%clk 0:00:12]} 26. Ke2 {[%clk 0:00:23]}  Rhd8 {[%clk 0:00:12]} 27. Bc3 {[%clk 0:00:24]}  Nf6 {[%clk 0:00:06]} 28. Rc2 {[%clk 0:00:20]}  R3d7 {[%clk 0:00:05]} 29. a3 {[%clk 0:00:20]}  Nd5 {[%clk 0:00:05]} 30. Bxg7 {[%clk 0:00:20]}  Rg8 {[%clk 0:00:04]} 31. Bb2 {[%clk 0:00:19]}  Re8 {[%clk 0:00:04]} 32. Kf1 {[%clk 0:00:16]}  Ne7 {[%clk 0:00:04]} 33. Bf3 {[%clk 0:00:15]}  Nf5 {[%clk 0:00:04]} 34. Bg4 {[%clk 0:00:15]}  Rde7 {[%clk 0:00:04]} 35. Bxf5 {[%clk 0:00:15]}  gxf5 {[%clk 0:00:05]} 36. h4 {[%clk 0:00:16]}  f4 {[%clk 0:00:05]} 37. h5 {[%clk 0:00:15]}  fxe3 {[%clk 0:00:05]} 38. dxe3 {[%clk 0:00:16]}  Be5 {[%clk 0:00:03]} 39. Bxe5+ {[%clk 0:00:15]}  Rxe5 {[%clk 0:00:04]} 40. h6 {[%clk 0:00:16]}  Rh8 {[%clk 0:00:04]} 41. Rc4 {[%clk 0:00:14]}  Re6 {[%clk 0:00:04]} 42. h7 {[%clk 0:00:13]}  Rg6 {[%clk 0:00:03]} 43. Rch4 {[%clk 0:00:13]}  Rg7 {[%clk 0:00:03]} 44. Ke2 {[%clk 0:00:13]}  Kc7 {[%clk 0:00:03]} 45. f4 {[%clk 0:00:14]}  Kd6 {[%clk 0:00:03]} 46. e4 {[%clk 0:00:14]}  Rg2+ {[%clk 0:00:02]} 47. Kf3 {[%clk 0:00:14]}  Rg7 {[%clk 0:00:03]} 48. Rh6+ {[%clk 0:00:15]}  Ke7 {[%clk 0:00:03]} 49. R1h5 {[%clk 0:00:15]}  f6 {[%clk 0:00:03]} 50. Rh4 {[%clk 0:00:12]}  Kf7 {[%clk 0:00:03]} 51. Rg4 {[%clk 0:00:11]}  Rxg4 {[%clk 0:00:03]} 52. Kxg4 {[%clk 0:00:12]}  Kg7 {[%clk 0:00:04]} 53. Rh4 {[%clk 0:00:11]}  Rxh7 {[%clk 0:00:04]} 54. Rxh7+ {[%clk 0:00:12]}  Kxh7 {[%clk 0:00:05]} 55. Kf5 {[%clk 0:00:12]}  Kg7 {[%clk 0:00:05]} 56. Ke6 {[%clk 0:00:13]}  a5 {[%clk 0:00:03]} 57. f5 {[%clk 0:00:12]}  axb4 {[%clk 0:00:02]} 58. axb4 {[%clk 0:00:13]}  b6 {[%clk 0:00:01]} 59. Ke7 {[%clk 0:00:13]}  c5 {[%clk 0:00:01]} 60. bxc5 {[%clk 0:00:13]}  bxc5 {[%clk 0:00:02]} 61. e5 {[%clk 0:00:14]}  c4 {[%clk 0:00:02]} 62. exf6+ {[%clk 0:00:14]}  Kh6 {[%clk 0:00:03]} 63. f7 {[%clk 0:00:15]}  c3 {[%clk 0:00:04]} 64. f8=Q+ {[%clk 0:00:15]}  Kg5 {[%clk 0:00:04]} 65. Qg7+ {[%clk 0:00:15]}  Kxf5 {[%clk 0:00:05]} 66. Qxc3 {[%clk 0:00:16]}  Kf4 {[%clk 0:00:05]} 67. Ke6 {[%clk 0:00:15]}  Kg4 {[%clk 0:00:05]} 68. Qe3 {[%clk 0:00:15]}  Kh5 {[%clk 0:00:06]} 69. Qg1 {[%clk 0:00:15]}  Kh4 {[%clk 0:00:06]} 70. Kf5 {[%clk 0:00:16]}  Kh5 {[%clk 0:00:07]} 71. Qh2# {[%clk 0:00:15]} 1-0

[Event "November 21 Early 2023"]
[Site "https://www.chess.com"]
[Date "2023.11.21"]
[Round "5"]
[White "Kopczynski, Michal"]
[Black "Weishaeutel, Moritz"]
[Result "0-1"]
[Board "102"]
[TimeControl "180+1"]
[WhiteFideId "1124200"]
[BlackFideId "12967300"]
[WhiteElo "2174"]
[BlackElo "2321"]
[WhiteTeam "POL"]
[BlackTeam "GER"]
[WhiteClock "0:00:03"]
[BlackClock "0:00:35"]

1. e4 {[%clk 0:03:00]}  e5 {[%clk 0:03:00]} 2. Nf3 {[%clk 0:03:00]}  Nf6 {[%clk 0:03:01]} 3. Bc4 {[%clk 0:02:59]}  Nxe4 {[%clk 0:03:00]} 4. d3 {[%clk 0:02:51]}  Nf6 {[%clk 0:02:58]} 5. Nxe5 {[%clk 0:02:51]}  d5 {[%clk 0:02:59]} 6. Bb3 {[%clk 0:02:50]}  Bd6 {[%clk 0:02:58]} 7. d4 {[%clk 0:02:50]}  O-O {[%clk 0:02:58]} 8. O-O {[%clk 0:02:50]}  h6 {[%clk 0:02:56]} 9. Bf4 {[%clk 0:02:48]}  c6 {[%clk 0:02:52]} 10. c3 {[%clk 0:02:47]}  Qc7 {[%clk 0:02:47]} 11. Bc2 {[%clk 0:02:46]}  Re8 {[%clk 0:02:44]} 12. Qd3 {[%clk 0:02:38]}  Nbd7 {[%clk 0:02:32]} 13. Nxd7 {[%clk 0:02:03]}  Bxd7 {[%clk 0:02:33]} 14. Bxd6 {[%clk 0:02:00]}  Qxd6 {[%clk 0:02:34]} 15. Nd2 {[%clk 0:02:00]}  Re7 {[%clk 0:02:33]} 16. Nf3 {[%clk 0:01:58]}  Ne4 {[%clk 0:02:16]} 17. Ne5 {[%clk 0:01:54]}  Bf5 {[%clk 0:02:16]} 18. Qf3 {[%clk 0:01:15]}  Bh7 {[%clk 0:02:17]} 19. Rfe1 {[%clk 0:01:07]}  Rae8 {[%clk 0:02:16]} 20. Qh5 {[%clk 0:00:57]}  Qf6 {[%clk 0:02:04]} 21. f3 {[%clk 0:00:52]}  Rxe5 {[%clk 0:01:42]} 22. dxe5 {[%clk 0:00:46]}  Rxe5 {[%clk 0:01:43]} 23. Qh3 {[%clk 0:00:44]}  Bf5 {[%clk 0:01:44]} 24. g4 {[%clk 0:00:42]}  Ng5 {[%clk 0:01:44]} 25. Qg2 {[%clk 0:00:27]}  Bxc2 {[%clk 0:01:44]} 26. Rxe5 {[%clk 0:00:21]}  Nxf3+ {[%clk 0:01:44]} 27. Kh1 {[%clk 0:00:20]}  Nxe5 {[%clk 0:01:37]} 28. Qxc2 {[%clk 0:00:20]}  Nxg4 {[%clk 0:01:33]} 29. Qg2 {[%clk 0:00:19]}  Nf2+ {[%clk 0:01:29]} 30. Kg1 {[%clk 0:00:18]}  Ne4 {[%clk 0:01:30]} 31. Rf1 {[%clk 0:00:18]}  Qe7 {[%clk 0:01:29]} 32. Re1 {[%clk 0:00:18]}  Qc5+ {[%clk 0:01:24]} 33. Kf1 {[%clk 0:00:18]}  Qc4+ {[%clk 0:01:24]} 34. Kg1 {[%clk 0:00:18]}  Qxa2 {[%clk 0:01:23]} 35. h4 {[%clk 0:00:17]}  Qa5 {[%clk 0:01:19]} 36. Kh2 {[%clk 0:00:17]}  Qc7+ {[%clk 0:01:19]} 37. Kh3 {[%clk 0:00:16]}  Qf4 {[%clk 0:01:18]} 38. Rf1 {[%clk 0:00:13]}  Qe5 {[%clk 0:01:08]} 39. Rg1 {[%clk 0:00:13]}  g6 {[%clk 0:00:56]} 40. Qf3 {[%clk 0:00:12]}  Qf6 {[%clk 0:00:49]} 41. Qxf6 {[%clk 0:00:11]}  Nxf6 {[%clk 0:00:50]} 42. Ra1 {[%clk 0:00:11]}  a6 {[%clk 0:00:50]} 43. Re1 {[%clk 0:00:12]}  Ne4 {[%clk 0:00:50]} 44. c4 {[%clk 0:00:12]}  f5 {[%clk 0:00:48]} 45. cxd5 {[%clk 0:00:12]}  cxd5 {[%clk 0:00:49]} 46. h5 {[%clk 0:00:13]}  Kf7 {[%clk 0:00:49]} 47. hxg6+ {[%clk 0:00:13]}  Kxg6 {[%clk 0:00:50]} 48. Kg2 {[%clk 0:00:13]}  Kf6 {[%clk 0:00:49]} 49. Kf3 {[%clk 0:00:14]}  Ke5 {[%clk 0:00:49]} 50. Rh1 {[%clk 0:00:14]}  Ng5+ {[%clk 0:00:47]} 51. Ke2 {[%clk 0:00:13]}  Nf7 {[%clk 0:00:47]} 52. Rg1 {[%clk 0:00:11]}  d4 {[%clk 0:00:45]} 53. Rg7 {[%clk 0:00:10]}  Kf6 {[%clk 0:00:45]} 54. Rg8 {[%clk 0:00:11]}  Ke6 {[%clk 0:00:38]} 55. Kd3 {[%clk 0:00:09]}  Kd5 {[%clk 0:00:36]} 56. Rf8 {[%clk 0:00:07]}  Ne5+ {[%clk 0:00:37]} 57. Kd2 {[%clk 0:00:07]}  Ke4 {[%clk 0:00:36]} 58. Re8 {[%clk 0:00:07]}  f4 {[%clk 0:00:37]} 59. Rb8 {[%clk 0:00:06]}  b5 {[%clk 0:00:35]} 60. Rb6 {[%clk 0:00:03]}  Nc4+ {[%clk 0:00:35]} 0-1

[Event "November 21 Early 2023"]
[Site "https://www.chess.com"]
[Date "2023.11.21"]
[Round "5"]
[White "Belov, Alexei"]
[Black "Begunov, Konstantin"]
[Result "1-0"]
[Board "103"]
[TimeControl "180+1"]
[WhiteFideId "4128206"]
[BlackFideId "4118510"]
[WhiteElo "2622"]
[BlackElo "1989"]
[WhiteTeam "RUS"]
[BlackTeam "RUS"]
[WhiteClock "0:00:13"]
[BlackClock "0:00:04"]

1. e4 {[%clk 0:02:57]}  c5 {[%clk 0:02:59]} 2. Nf3 {[%clk 0:02:56]}  d6 {[%clk 0:03:00]} 3. d4 {[%clk 0:02:56]}  cxd4 {[%clk 0:03:01]} 4. Nxd4 {[%clk 0:02:56]}  Nf6 {[%clk 0:03:01]} 5. Nc3 {[%clk 0:02:57]}  a6 {[%clk 0:03:02]} 6. Be2 {[%clk 0:02:57]}  e5 {[%clk 0:03:02]} 7. Nb3 {[%clk 0:02:57]}  Be7 {[%clk 0:03:02]} 8. O-O {[%clk 0:02:56]}  O-O {[%clk 0:03:03]} 9. Kh1 {[%clk 0:02:57]}  Be6 {[%clk 0:03:02]} 10. f4 {[%clk 0:02:57]}  Qc7 {[%clk 0:03:02]} 11. f5 {[%clk 0:02:56]}  Bc4 {[%clk 0:03:02]} 12. g4 {[%clk 0:02:56]}  d5 {[%clk 0:01:51]} 13. g5 {[%clk 0:02:56]}  Nxe4 {[%clk 0:01:50]} 14. Nxe4 {[%clk 0:02:56]}  dxe4 {[%clk 0:01:50]} 15. f6 {[%clk 0:02:56]}  Rd8 {[%clk 0:01:33]} 16. Qe1 {[%clk 0:02:55]}  Bf8 {[%clk 0:01:32]} 17. fxg7 {[%clk 0:02:54]}  Bxg7 {[%clk 0:01:29]} 18. Be3 {[%clk 0:02:38]}  Bxe2 {[%clk 0:01:23]} 19. Qxe2 {[%clk 0:02:38]}  Nc6 {[%clk 0:01:24]} 20. c3 {[%clk 0:02:36]}  Na5 {[%clk 0:01:11]} 21. Nd2 {[%clk 0:02:17]}  Rac8 {[%clk 0:01:00]} 22. Qf2 {[%clk 0:01:53]}  Nc4 {[%clk 0:00:57]} 23. Nxe4 {[%clk 0:01:49]}  Qc6 {[%clk 0:00:53]} 24. Qf3 {[%clk 0:01:23]}  Rd3 {[%clk 0:00:52]} 25. Rae1 {[%clk 0:01:18]}  Rcd8 {[%clk 0:00:43]} 26. Kg1 {[%clk 0:01:14]}  Rxe3 {[%clk 0:00:40]} 27. Rxe3 {[%clk 0:01:13]}  Nxe3 {[%clk 0:00:41]} 28. Qxe3 {[%clk 0:01:10]}  Qd5 {[%clk 0:00:40]} 29. b3 {[%clk 0:00:56]}  Qd3 {[%clk 0:00:39]} 30. Re1 {[%clk 0:00:48]}  Qxe3+ {[%clk 0:00:36]} 31. Rxe3 {[%clk 0:00:48]}  Rd1+ {[%clk 0:00:36]} 32. Kf2 {[%clk 0:00:47]}  Rh1 {[%clk 0:00:36]} 33. Kg2 {[%clk 0:00:46]}  Ra1 {[%clk 0:00:35]} 34. Re2 {[%clk 0:00:45]}  Kf8 {[%clk 0:00:35]} 35. Nd6 {[%clk 0:00:26]}  e4 {[%clk 0:00:20]} 36. Nxe4 {[%clk 0:00:25]}  Rc1 {[%clk 0:00:18]} 37. c4 {[%clk 0:00:25]}  b5 {[%clk 0:00:16]} 38. cxb5 {[%clk 0:00:23]}  axb5 {[%clk 0:00:17]} 39. Nf6 {[%clk 0:00:22]}  h6 {[%clk 0:00:14]} 40. Nd7+ {[%clk 0:00:20]}  Kg8 {[%clk 0:00:14]} 41. gxh6 {[%clk 0:00:19]}  Bxh6 {[%clk 0:00:13]} 42. Kf3 {[%clk 0:00:20]}  Kg7 {[%clk 0:00:12]} 43. Ne5 {[%clk 0:00:19]}  Bg5 {[%clk 0:00:12]} 44. Ke4 {[%clk 0:00:18]}  Bf6 {[%clk 0:00:10]} 45. Rg2+ {[%clk 0:00:17]}  Kf8 {[%clk 0:00:09]} 46. Nd7+ {[%clk 0:00:17]}  Ke7 {[%clk 0:00:10]} 47. Nxf6 {[%clk 0:00:17]}  Kxf6 {[%clk 0:00:11]} 48. Kd5 {[%clk 0:00:18]}  b4 {[%clk 0:00:10]} 49. h4 {[%clk 0:00:16]}  Rh1 {[%clk 0:00:09]} 50. Rg4 {[%clk 0:00:16]}  Kf5 {[%clk 0:00:10]} 51. Rxb4 {[%clk 0:00:15]}  Rh2 {[%clk 0:00:07]} 52. a4 {[%clk 0:00:15]}  Rd2+ {[%clk 0:00:06]} 53. Kc6 {[%clk 0:00:15]}  Ke5 {[%clk 0:00:07]} 54. a5 {[%clk 0:00:14]}  f5 {[%clk 0:00:07]} 55. a6 {[%clk 0:00:14]}  f4 {[%clk 0:00:08]} 56. Kb7 {[%clk 0:00:14]}  f3 {[%clk 0:00:08]} 57. Ra4 {[%clk 0:00:14]}  f2 {[%clk 0:00:06]} 58. Ra1 {[%clk 0:00:14]}  Rd7+ {[%clk 0:00:07]} 59. Kc6 {[%clk 0:00:14]}  Ra7 {[%clk 0:00:06]} 60. Kb6 {[%clk 0:00:13]}  Rf7 {[%clk 0:00:07]} 61. a7 {[%clk 0:00:13]}  f1=Q {[%clk 0:00:05]} 62. Rxf1 {[%clk 0:00:13]}  Rxf1 {[%clk 0:00:04]} 63. a8=Q {[%clk 0:00:13]} 1-0

[Event "November 21 Early 2023"]
[Site "https://www.chess.com"]
[Date "2023.11.21"]
[Round "5"]
[White "Golubev, Mikhail"]
[Black "Berezin, Viktor"]
[Result "1-0"]
[Board "105"]
[TimeControl "180+1"]
[WhiteFideId "14100983"]
[BlackFideId "14107872"]
[WhiteElo "2352"]
[BlackElo "2310"]
[WhiteTeam "UKR"]
[BlackTeam "UKR"]
[WhiteClock "0:00:11"]
[BlackClock "0:00:03"]

1. e4 {[%clk 0:02:41]}  g6 {[%clk 0:02:57]} 2. d4 {[%clk 0:02:40]}  Bg7 {[%clk 0:02:51]} 3. c3 {[%clk 0:02:39]}  d6 {[%clk 0:02:34]} 4. Bg5 {[%clk 0:02:39]}  Nf6 {[%clk 0:02:33]} 5. Nd2 {[%clk 0:02:38]}  O-O {[%clk 0:02:25]} 6. Ngf3 {[%clk 0:02:38]}  c6 {[%clk 0:02:25]} 7. a4 {[%clk 0:02:34]}  a5 {[%clk 0:02:19]} 8. Be2 {[%clk 0:02:33]}  Nbd7 {[%clk 0:02:15]} 9. O-O {[%clk 0:02:33]}  e5 {[%clk 0:02:15]} 10. dxe5 {[%clk 0:02:32]}  Nxe5 {[%clk 0:02:13]} 11. Qc2 {[%clk 0:02:10]}  Qc7 {[%clk 0:02:04]} 12. Nxe5 {[%clk 0:01:56]}  dxe5 {[%clk 0:02:04]} 13. Nc4 {[%clk 0:01:56]}  Be6 {[%clk 0:01:58]} 14. Rfd1 {[%clk 0:01:49]}  h6 {[%clk 0:01:53]} 15. Bh4 {[%clk 0:01:42]}  Rad8 {[%clk 0:01:36]} 16. f3 {[%clk 0:01:28]}  Bxc4 {[%clk 0:00:42]} 17. Bxc4 {[%clk 0:01:27]}  Rxd1+ {[%clk 0:00:42]} 18. Rxd1 {[%clk 0:01:25]}  Rd8 {[%clk 0:00:43]} 19. Rxd8+ {[%clk 0:01:15]}  Qxd8 {[%clk 0:00:44]} 20. Bf2 {[%clk 0:01:15]}  Bf8 {[%clk 0:00:38]} 21. g3 {[%clk 0:01:07]}  Ne8 {[%clk 0:00:38]} 22. Kg2 {[%clk 0:01:01]}  Nd6 {[%clk 0:00:37]} 23. Ba2 {[%clk 0:00:57]}  Kg7 {[%clk 0:00:36]} 24. Qd3 {[%clk 0:00:54]}  Be7 {[%clk 0:00:33]} 25. b4 {[%clk 0:00:49]}  axb4 {[%clk 0:00:32]} 26. cxb4 {[%clk 0:00:50]}  Qa8 {[%clk 0:00:31]} 27. Bb3 {[%clk 0:00:35]}  f5 {[%clk 0:00:25]} 28. exf5 {[%clk 0:00:31]}  gxf5 {[%clk 0:00:23]} 29. f4 {[%clk 0:00:26]}  e4 {[%clk 0:00:21]} 30. Qd4+ {[%clk 0:00:23]}  Kh7 {[%clk 0:00:16]} 31. Qe5 {[%clk 0:00:21]}  Qd8 {[%clk 0:00:12]} 32. Bd4 {[%clk 0:00:20]}  Qf8 {[%clk 0:00:05]} 33. Be6 {[%clk 0:00:17]}  Kg6 {[%clk 0:00:05]} 34. b5 {[%clk 0:00:16]}  cxb5 {[%clk 0:00:05]} 35. axb5 {[%clk 0:00:15]}  e3 {[%clk 0:00:04]} 36. Qxe3 {[%clk 0:00:15]}  Ne4 {[%clk 0:00:05]} 37. Qb3 {[%clk 0:00:13]}  Qd8 {[%clk 0:00:04]} 38. Qd5 {[%clk 0:00:12]}  Qa8 {[%clk 0:00:03]} 39. Qxf5# {[%clk 0:00:11]} 1-0

[Event "November 21 Early 2023"]
[Site "https://www.chess.com"]
[Date "2023.11.21"]
[Round "5"]
[White "Maltsevskaya, Aleksandra"]
[Black "Rosenberg, Evan S"]
[Result "1-0"]
[Board "109"]
[TimeControl "180+1"]
[WhiteFideId "24174041"]
[BlackFideId "2019299"]
[WhiteElo "2296"]
[BlackElo "2446"]
[WhiteTeam "POL"]
[BlackTeam "USA"]
[WhiteClock "0:00:57"]
[BlackClock "0:00:00"]

1. Nf3 {[%clk 0:03:00]}  d5 {[%clk 0:02:59]} 2. g3 {[%clk 0:03:01]}  Nd7 {[%clk 0:02:58]} 3. d4 {[%clk 0:02:55]}  Nb6 {[%clk 0:02:51]} 4. Bg2 {[%clk 0:02:55]}  Nf6 {[%clk 0:02:51]} 5. O-O {[%clk 0:02:55]}  Bf5 {[%clk 0:02:51]} 6. Ne5 {[%clk 0:02:55]}  e6 {[%clk 0:02:50]} 7. c4 {[%clk 0:02:54]}  c6 {[%clk 0:02:50]} 8. Bg5 {[%clk 0:02:45]}  Nxc4 {[%clk 0:02:41]} 9. Nxc4 {[%clk 0:02:44]}  dxc4 {[%clk 0:02:41]} 10. e4 {[%clk 0:02:44]}  Bg6 {[%clk 0:01:57]} 11. e5 {[%clk 0:02:41]}  h6 {[%clk 0:01:58]} 12. Bh4 {[%clk 0:02:41]}  Bh5 {[%clk 0:01:57]} 13. Bxf6 {[%clk 0:02:11]}  gxf6 {[%clk 0:01:28]} 14. Qxh5 {[%clk 0:02:09]}  Qxd4 {[%clk 0:01:29]} 15. Nc3 {[%clk 0:01:49]}  Qxe5 {[%clk 0:01:23]} 16. Qf3 {[%clk 0:01:47]}  f5 {[%clk 0:01:14]} 17. Rfe1 {[%clk 0:01:47]}  Qf6 {[%clk 0:01:14]} 18. Qf4 {[%clk 0:01:39]}  Be7 {[%clk 0:00:51]} 19. Qxc4 {[%clk 0:01:39]}  O-O {[%clk 0:00:51]} 20. Rad1 {[%clk 0:01:36]}  Rad8 {[%clk 0:00:47]} 21. b4 {[%clk 0:01:33]}  a6 {[%clk 0:00:46]} 22. Ne2 {[%clk 0:01:31]}  Qb2 {[%clk 0:00:44]} 23. Nf4 {[%clk 0:01:27]}  Qxb4 {[%clk 0:00:40]} 24. Qe2 {[%clk 0:01:24]}  Rxd1 {[%clk 0:00:30]} 25. Rxd1 {[%clk 0:01:24]}  Rd8 {[%clk 0:00:29]} 26. Rxd8+ {[%clk 0:01:16]}  Bxd8 {[%clk 0:00:30]} 27. h4 {[%clk 0:01:15]}  Bc7 {[%clk 0:00:26]} 28. Nh5 {[%clk 0:01:15]}  Qb1+ {[%clk 0:00:23]} 29. Kh2 {[%clk 0:01:15]}  Qa1 {[%clk 0:00:23]} 30. Qd2 {[%clk 0:01:13]}  Bb6 {[%clk 0:00:10]} 31. Qxh6 {[%clk 0:01:12]}  Bd4 {[%clk 0:00:08]} 32. Qg5+ {[%clk 0:01:08]}  Bg7 {[%clk 0:00:04]} 33. Qd8+ {[%clk 0:00:57]}  Kh7 {[%clk 0:00:00]} 34. Qd7 {[%clk 0:00:57]} 1-0

[Event "November 21 Early 2023"]
[Site "https://www.chess.com"]
[Date "2023.11.21"]
[Round "5"]
[White "Vlassov, Nikolai"]
[Black "Minko, Dmitry"]
[Result "1-0"]
[Board "110"]
[TimeControl "180+1"]
[WhiteFideId "4103360"]
[BlackFideId "24188468"]
[WhiteElo "2324"]
[BlackElo "1992"]
[WhiteTeam "FID"]
[BlackTeam "FID"]
[WhiteClock "0:01:01"]
[BlackClock "0:00:09"]

1. e4 {[%clk 0:03:00]}  e5 {[%clk 0:03:00]} 2. Bc4 {[%clk 0:02:59]}  Nc6 {[%clk 0:02:59]} 3. f4 {[%clk 0:02:59]}  Nf6 {[%clk 0:02:40]} 4. Nc3 {[%clk 0:02:58]}  Bb4 {[%clk 0:02:39]} 5. Nf3 {[%clk 0:02:48]}  d6 {[%clk 0:02:33]} 6. O-O {[%clk 0:02:43]}  Bg4 {[%clk 0:02:25]} 7. d3 {[%clk 0:02:29]}  Qd7 {[%clk 0:02:19]} 8. Bb5 {[%clk 0:02:12]}  a6 {[%clk 0:01:11]} 9. fxe5 {[%clk 0:02:07]}  dxe5 {[%clk 0:01:08]} 10. Bxc6 {[%clk 0:02:05]}  bxc6 {[%clk 0:01:08]} 11. Bg5 {[%clk 0:01:54]}  Bxf3 {[%clk 0:01:01]} 12. Qxf3 {[%clk 0:01:52]}  Be7 {[%clk 0:01:02]} 13. Kh1 {[%clk 0:01:43]}  O-O {[%clk 0:00:55]} 14. Ne2 {[%clk 0:01:43]}  a5 {[%clk 0:00:50]} 15. Ng3 {[%clk 0:01:42]}  h6 {[%clk 0:00:34]} 16. Bxh6 {[%clk 0:01:25]}  Qg4 {[%clk 0:00:22]} 17. Bxg7 {[%clk 0:01:16]}  Qxf3 {[%clk 0:00:07]} 18. Rxf3 {[%clk 0:01:15]}  Nd7 {[%clk 0:00:08]} 19. Bxf8 {[%clk 0:01:14]}  Bxf8 {[%clk 0:00:09]} 20. Raf1 {[%clk 0:01:12]}  f6 {[%clk 0:00:09]} 21. Nh5 {[%clk 0:01:08]}  Be7 {[%clk 0:00:09]} 22. Rg3+ {[%clk 0:01:08]}  Kf7 {[%clk 0:00:10]} 23. Rg7+ {[%clk 0:01:08]}  Ke6 {[%clk 0:00:10]} 24. Rh7 {[%clk 0:01:02]}  a4 {[%clk 0:00:10]} 25. Ng7+ {[%clk 0:01:02]}  Kf7 {[%clk 0:00:09]} 26. Nf5+ {[%clk 0:01:01]} 1-0